Cogmind - Beta 16 @@@ ROGUE MODE // 2026.01.18 @ 00:13:33 Player: K.Ioz Result: Destroyed by S-10 Pest with Light Assault Rifle Performance ------------- Evolutions (0) 0 Regions Visited (1) 200 Robots Destroyed (6) 30 Value Destroyed (90) 90 Prototype IDs (0) 0 Alien Tech Used (0) 0 Bonus (0) 0 TOTAL SCORE: 320 Bonus ------- None Cogmind --------- Core Integrity 0/250 Matter 281/300 Energy 80/250 System Corruption 0% Temperature Cool (0) Movement Walking (190) Ox1 Location -10/Materials Parts ------- > --- POWER (1) -------- Ion Engine > --- PROPULSION (2) --- Aluminum Leg > --- UTILITY (2) ------ Small Storage Unit Signal Interpreter > --- WEAPON (2) ------- Small Laser Light Assault Rifle > --- INVENTORY (8) ---- Light Treads Flight Unit Flight Unit Heat Sink High-capacity Storage Unit Small Laser Light Assault Rifle Peak State ------------ > --- POWER ------------ Ion Engine > --- PROPULSION ------- Aluminum Leg Aluminum Leg > --- UTILITY ---------- Small Storage Unit Targeting Computer > --- WEAPON ----------- Small Laser Light Assault Rifle > --- INVENTORY -------- Ion Engine Light Treads Light Treads Small Laser [Rating: 7] Favorites ----------- Power Ion Engine Engine Ion Engine Propulsion Aluminum Leg Leg Aluminum Leg Utility Small Storage Unit Storage Small Storage Unit Processor Targeting Computer Weapon Light Assault Rifle Energy Gun Small Laser Ballistic Gun Light Assault Rifle Build | -11 -10 ------- Run | Yrd Mat Slots Evolved . | . . Power . | . . Propulsion . | . . Utility . | . . Weapon . | . . Parts Attached 9 | 6 3 Power 2 | 1 1 Engine 2 | 1 1 Core . | . . Reactor . | . . Propulsion 2 | 2 . Treads . | . . Leg 2 | 2 . Wheel . | . . Hover . | . . Flight . | . . Utility 3 | 1 2 Device . | . . Storage 1 | 1 . Processor 2 | . 2 Hackware . | . . Protection . | . . Artifact . | . . Weapon 2 | 2 . Energy Gun 1 | 1 . Energy Cannon . | . . Ballistic Gun 1 | 1 . Ballistic Cannon . | . . Launcher . | . . Special Weapon . | . . Impact Weapon . | . . Slashing Weapon . | . . Piercing Weapon . | . . Special Melee Weapon . | . . Unidentified Prototypes . | . . Parts Lost 2 | . 2 Power 1 | . 1 Propulsion 1 | . 1 Utility . | . . Weapon . | . . Highest Loss Streak 1 | . 1 To Critical Strikes . | . . Average Backups 6 | 1 6 Power . | . 1 Propulsion 2 | . 2 Utility 1 | . 1 Weapon 1 | . 1 Tool/Special . | . . Unused Backups 9 | . 9 Power . | . . Propulsion 5 | . 5 Utility 2 | . 2 Weapon 2 | . 2 Tool/Special . | . . Average Slot Usage (%) 93 | . 93 Engine 13 | . 13 Leg 23 | . 23 Storage 14 | . 14 Processor 12 | . 12 Energy Gun 14 | . 14 Ballistic Gun 14 | . 14 Peak Build Rating 7 | 6 7 Average Rating 6 | 4 6 On Entrance 3 | . 6 Avg Prop Armor Cover (%) . | . . Naked Turns . | . . Heaviest Build 12 | 12 12 Greatest Support 20 | 20 20 Greatest Overweight (x) 1 | . 1 Average Overweight (x) . | . . Largest Inventory Capacity 8 | 8 8 Average Capacity 7 | 6 8 Most Carried 8 | 4 8 Average Carried 6 | 2 6 Final Capacity 8 | 8 8 Final Carried 7 | 4 7 Class Distribution -------------------- 100% | Mutant Dominant Class ---------------- Mutant | -10/Materials Resources | -11 -10 ----------- Run | Yrd Mat Matter Collected 278 | 260 18 Remotely . | . . Salvage Created 67 | . 67 Parts 9 | . 9 Haulers Intercepted . | . . Recyclers Shooed . | . . Parts Field Recycled . | . . Retrieved Matter . | . . Parts Self-Destructed . | . . Prevented . | . . Parts Restored . | . . Kills | -11 -10 ------- Run | Yrd Mat Combat Hostiles Destroyed 6 | . 6 Guns 4 | . 4 AOE 2 | . 2 Classes Destroyed 1 | . 1 Swarmer 6 | . 6 Best Kill Streak 3 | . 3 Combat Bots Only 3 | . 3 Max Kills in Single Turn 2 | . 2 Gunslinging . | . . Exploded 2 | . 2 Melee . | . . Uniques/NPCs Destroyed . | . . Combat | -11 -10 -------- Run | Yrd Mat Hostile Shots Fired 38 | . 38 Missed 10 | . 10 Hits 28 | . 28 Projectile 28 | . 28 Damage Taken 480 | . 480 Core 253 | . 253 Absorbed by Shields . | . . Core Remaining (%) 100 | 100 . Volleys Fired 17 | . 17 Largest 2 | . 2 Hottest 60 | . 60 Shots Fired 34 | . 34 Gun 34 | . 34 Cannon . | . . Launcher . | . . Special . | . . Kinetic 17 | . 17 Thermal 17 | . 17 Explosive . | . . Electromagnetic . | . . Robot Hit Streak 5 | . 5 Robot Miss Streak 4 | . 4 Penetration Max . | . . Secondary Targets 1 | . 1 Max Gunslinging Chain 1 | . 1 Shots Hit Robots 19 | . 19 Core Hits 8 | . 8 Critical Kills . | . . Critical Parts Destroyed . | . . Critical Strikes . | . . Melee Attacks . | . . Impact . | . . Slashing . | . . Piercing . | . . Sneak Attacks . | . . Combat Hostiles . | . . Follow-up Attacks . | . . Damage Inflicted 390 | . 390 Guns 178 | . 178 Cannons . | . . Explosions 212 | . 212 Melee . | . . Ramming . | . . Kinetic 70 | . 70 Thermal 320 | . 320 Explosive . | . . Electromagnetic . | . . Impact . | . . Slashing . | . . Piercing . | . . Highest Corruption . | . . Average Corruption . | . . Corruption Purged . | . . Corruption Blocked . | . . Overload Shots . | . . Overflow Damage 93 | . 93 Projectiles . | . . Explosions 93 | . 93 Melee . | . . Knockbacks . | . . Impact . | . . Kinetic . | . . Secondary . | . . Self-Inflicted Damage 255 | . 255 Shots 3 | . 3 Rammed . | . . Targets Rammed . | . . Kicked . | . . Crushed . | . . Highest Temperature 60 | . 60 Average Temperature 26 | . 26 Received Heat Transfer . | . . Siege Activations . | . . Martial Activations . | . . Shielding Activations . | . . Robots Disrupted . | . . Combat Hostiles . | . . Robots Corrupted . | . . Combat Hostiles . | . . Parts Fried . | . . Impact Corruptions . | . . Robots Melted . | . . Combat Hostiles . | . . Parts Melted 1 | . 1 Heat Transferred 350 | . 350 Parts Sabotaged . | . . Parts Stolen . | . . Parts Stripped . | . . Power Chain Reactions . | . . Alert | -11 -10 ------- Run | Yrd Mat Maximum Alert Level 1 | . 1 Low Security (%) 81 | 100 79 Level 1 18 | . 20 Level 2 . | . . Level 3 . | . . Level 4 . | . . Level 5 . | . . High Security . | . . Max Security . | . . Peak Influence 248 | . 248 Initial . | . . Average 77 | . 89 Influence Increases 312 | . 312 Destroy 0b10 Robot/C 120 | . 120 Destroy Leader 20 | . 20 Successful Hack 4 | . 4 Disable Machine 45 | . 45 Destroy Structure 48 | . 48 Partial Spotted 15 | . 15 Lose Combat Pursuer 60 | . 60 Influence Decreases 140 | . 140 Time Decay 120 | . 120 Lost Part 20 | . 20 Squads Dispatched 1 | . 1 Investigation . | . . Extermination . | . . Reinforcement 1 | . 1 Assault . | . . Garrison . | . . Intercept . | . . Searches Triggered . | . . Construction Impeded . | . . Haulers Reinforced . | . . Active Scanning Responses . | . . Cargo Convoy Interrupts . | . . Stealth | -11 -10 --------- Run | Yrd Mat Distress Signals 1 | . 1 Communications Jammed . | . . Distress Signals . | . . Times Spotted 17 | . 17 Peak Tracking Total 5 | . 5 Tactical Retreats 2 | . 2 Traps | -11 -10 ------- Run | Yrd Mat Traps Triggered . | . . Indirectly . | . . Trap Hack Attempts . | . . Triggered . | . . Disarmed . | . . Reprogrammed . | . . Reused . | . . Traps Extracted . | . . Installed . | . . Triggered . | . . Machines | -11 -10 ---------- Run | Yrd Mat Machines Disabled 3 | . 3 Max in Single Turn 3 | . 3 Machines Repaired . | . . Machines Dismantled . | . . Machines Sabotaged . | . . Overloaded Fab Kills . | . . Hacking | -11 -10 --------- Run | Yrd Mat Machines Accessed 1 | . 1 Terminals 1 | . 1 Fabricators . | . . Repair Stations . | . . Recycling Units . | . . Scanalyzers . | . . Garrison Access . | . . Total Hacks 3 | . 3 Successful 2 | . 2 Failed 1 | . 1 Catastrophic 1 | . 1 Database Lockouts . | . . Manual 3 | . 3 Terminals 3 | . 3 Fabricators . | . . Repair Stations . | . . Recycling Units . | . . Scanalyzers . | . . Garrison Access . | . . Terminal Hacks . | . . Fabricator Hacks . | . . Repair Station Hacks . | . . Recycling Unit Hacks . | . . Scanalyzer . | . . Garrison Access Hacks . | . . Unauthorized Hacks 2 | . 2 Terminals 2 | . 2 Botnet 1 | . 1 Skim 1 | . 1 Fabricators . | . . Repair Stations . | . . Recycling Units . | . . Scanalyzers . | . . Garrison Access . | . . Data Cores Recovered . | . . Used . | . . Hacking Detections 1 | . 1 Full Trace Events . | . . Feedback Events . | . . Feedback Blocked . | . . Robot Schematics Acquired . | . . Robots Built . | . . Authchips . | . . Time . | . . Total Robot Build Rating . | . . Part Schematics Acquired . | . . Parts Built . | . . Authchips . | . . Time . | . . Total Part Build Rating . | . . Part Studies Acquired . | . . Parts Repaired . | . . Time . | . . Parts Recycled . | . . Recycled Matter . | . . Retrieved Matter . | . . Retrieved Components . | . . Parts Scanalyzed . | . . Part Schematics Acquired . | . . Parts Damaged . | . . Bothacking | -11 -10 ------------ Run | Yrd Mat Used RIF Installer . | . . Robots Hacked . | . . Non-combat . | . . Combat . | . . Robot Hacks Applied . | . . Relay Couplers Released . | . . Fabnet Peak Effective % . | . . Robots Rewired . | . . Allies Hacked . | . . Hacks Repelled . | . . Allies | -11 -10 -------- Run | Yrd Mat Total Allies . | . . Largest Group . | . . Highest-Rated Group . | . . Highest-Rated Ally . | . . Total Orders . | . . Ally Attacks . | . . Total Damage . | . . Kills . | . . Allies Corrupted . | . . Allies Melted . | . . Intel | -11 -10 ------- Run | Yrd Mat Active Infowar (turns) . | . . Robot Analysis Total . | . . Derelict Logs Recovered . | . . Drone Launches . | . . Drone Recoveries . | . . Exploration | -11 -10 ------------- Run | Yrd Mat Turns Passed 499 | 69 430 Spaces Moved 313 | 51 262 Core 6 | 6 . Treads . | . . Legs 307 | 45 262 Wheels . | . . Hover . | . . Flight . | . . Fastest Speed 50 | 50 120 Average Speed 133 | 111 138 Slowest Speed 190 | 120 190 Overloaded Moves . | . . Propulsion Burnouts . | . . Robots Hopped . | . . Potential Cave-ins . | . . Cave-ins Triggered . | . . Exploration Rate (%) 23 | 4 43 Regions Visited 1 Branch Regions . Pre-discovered Areas . | . . Known Exits Taken . | . . Unknown Exits Taken 1 | 1 . Scrap Searched . | . . Spaces Dug . | . . Terrain Destroyed 62 | . 62 Melee . | . . Projectile . | . . AOE 62 | . 62 Terrain Rammed . | . . Walls Destroyed . | . . Machines Disabled . | . . Actions | -11 -10 --------- Run | Yrd Mat Total 360 | 60 300 Wait 9 | . 9 Move 312 | 50 262 Hop . | . . Pick Up 10 | 4 6 Fast Attach 8 | 6 2 Attach 1 | . 1 Detach 1 | . 1 Swap . | . . Drop 2 | . 2 Fire 17 | . 17 Melee . | . . Ram . | . . Kick . | . . Crush . | . . Escape Stasis . | . . Rewire . | . . Trap . | . . Miscellaneous . | . . Route ------- -11/Scrapyard -10/Materials (discovered 2 exits: *Mat / [*Min]) History --------- Turn | Location | Event 4 | -11/Scrapyard | Discovered new exit (range 16) 70 | -11/Scrapyard | Entered Materials 183 | -10/Materials | Discovered new exit (range 3) 295 | -10/Materials | Discovered new exit (range 13) 302 | -10/Materials | Build established: Mutant 361 | -10/Materials | Core integrity fell below 50% 361 | -10/Materials | Core integrity fell below 20% 447 | -10/Materials | Identified exit to Materials 500 | -10/Materials | Destroyed by S-10 Pest with Light Assault Rifle Last Messages --------------- 00355_ Switching to secondary target: S-10 Pest. 00360_ Fusion Modulator explodes. 00360_ Lgt. Ion Engine melted. 00360_ S-10 Pest destroyed. 00360_ Fusion Modulator explodes. 00360_ Aluminum Leg destroyed. 00360_ Destroyed Aluminum Leg. 00360_ Fusion Modulator explodes. 00368_ Dropped Lgt. Treads. 00368_ Acquired Flight Unit. 00369_ R-06 Scavenger collects Lgt. Treads. 00417_ Discarded Targeting Computer. 00417_ Acquired Signal Interpreter. 00447_ EXIT=IDENTIFIED: MATERIALS 00471_ O-16 Technician: "IFF HANDSHAKE FAILED. SECURING TERMINAL." 00480_ ALERT: Hostiles spotted, dispatching reinforcements to Terminal M002. 00495_ K-01 Serf collects debris. 00496_ Ion Engine destroyed. 00498_ K-01 Serf collects debris. Map ----- +----------------------------------------------------+ | ???????????????????????????##### #???# ## | | ???????????????????????????# # #???# # | | ???????????????????????????# < # #???# + | | ???????????????????????????# # #???# # | | ???????????????????????????# + #???# # | | ???????????????????????????# # #???# # | | ???????????????????????????# ############### # | | ???????????????????????????# + ## ## | | ??????????????????????#######+####### ## ## | | ??????????????????????# # ## ## | | ??????????????????????# """ """ """ # # # | | ??????????????????????# """ """ """ # """ + # | | ??????????????????????# """ """ """ # """"" # + | | ??????????????????????# # """"" # # | | ??????????????????????#! = # """"" ##+### | | ??????????????????????####+########## """ # | | ????????????????????????# #????#### # | | ????????????????????????# #??### # # | | ????????????????????????# #??# #### | | ????????????????????????# #?## #??# | | ?????????###+############ #?# #??# | | ???????? #?# #??# | | ???????? #?# #??# | | ???????? t #?# ########+ | | ???????? s #?# | | ???????? ##########@ ### | | ??????????"????????????# s " | | ???????????????????????# ""# ##### # | | ???????????????????????# !!# k #??# # | | ???????????????????????# < ""# ##??# # | | ???????????????????????# s ||# #???# ? | | ???????????????????????# ""# #???# ? | | ???????????????????????# "# #???# ? | | ???????????????????????## #####% ###???# ? | | ????????????????????????# #??## ############ ? | | ????????????????????????# #??# ? | | ????????????????????????# #### ? | | ??????????###+#########?# ? | | ??????????# # #############?? | | ??????????# # #?????????????? | | ??????????# + #?????????????? | | ??????????# # #?????????????? | | ??????????# # ??????? | | ??????????# ?# #### ?????? | | ??????????#############?# #??# ?????? | | ????????????????????????# #??# ########??????? | | ????????????????????????# #??# #?????????????? | | ????????????????????????# #??# #?????????????? | | ????????????????????????! ??# #?????????????? | | ??????????????????????? ??? #?????????????? | +----------------------------------------------------+ Best States ------------- Heat Dissipation 25 Energy Generation 10 Energy Capacity 250 Matter Stores 300 Matter Capacity 300 Sight Range 16 Terrain Scan Density 10 Evasion (%) 55 Targeting Accuracy 5 Item Schematics ----------------- None Robot Schematics ------------------ None Fabricated ------------ Nothing Repaired ---------- Nothing Studied --------- None Alien Tech Used ----------------- None Achievements -------------- None Challenges ------------ None Game ------ Seed PowerArcsightChip Manual? 0 Play Time 00:05:57 Cumulative 297.1 hours Start 2026.01.18 @ 00:10:10 End 2026.01.18 @ 00:13:33 Sessions 1 Manual Loads 0 Difficulty Rogue Special Mode None Game No. 192 Rogue 151 Adventurer 6 Explorer 35 Win Type - Total 7 Types 5/0/2/0/0/0/0/0/0/0 Lore% 57 Gallery% 67 Achievement% 41 Wizard Run 0 Options --------- Layout 0 ASCII 1 Keyboard 1 Movement Vi Keybinds 0 Fullscreen 1 Font 18/T_Terminus Map View 76x50 Zoom Use 0% Tactical HUD 1 Map Filters NONE Filters LOW_CONTRAST(47,30,31) Steam 1 RUN: a2608325-195c-4acf-b172-b2d3b9cd0136